[Event "Rapid Tournament (RAP)"]
[Site "Biel, Switzerland"]
[Date "2026.07.12"]
[Round "5.17"]
[White "Zecirovic, Giacomo"]
[Black "Tureshbayev, Anuar"]
[Result "0-1"]
[TimeControl "15 + 5"]
[WhiteTitle "-"]
[BlackTitle "-"]
[WhiteFideId "1339451"]
[BlackFideId "651081709"]
[WhiteElo "1886"]
[BlackElo "2246"]

1. e4 {[%clk 00:15:07]} {[%emt 00:00:01]} c5 {[%clk 00:15:09]} {[%emt
00:00:04]} 2. c3 {[%clk 00:15:11]} d5 {[%clk 00:15:09]} {[%emt 00:00:04]} 3.
exd5 {[%clk 00:15:14]} {[%emt 00:00:02]} Nf6 {[%clk 00:15:13]} 4. d4 {[%clk
00:15:16]} {[%emt 00:00:03]} cxd4 {[%clk 00:15:16]} {[%emt 00:00:02]} 5. cxd4
{[%clk 00:15:18]} {[%emt 00:00:04]} Nxd5 {[%clk 00:15:19]} {[%emt 00:00:02]} 6.
Nc3 {[%clk 00:15:15]} {[%emt 00:00:08]} Nc6 {[%clk 00:15:22]} {[%emt 00:00:02]}
7. Nf3 {[%clk 00:15:14]} {[%emt 00:00:05]} g6 {[%clk 00:15:13]} {[%emt
00:00:14]} 8. Bc4 {[%clk 00:15:16]} {[%emt 00:00:04]} Nxc3 {[%clk 00:15:01]}
{[%emt 00:00:18]} 9. bxc3 {[%clk 00:15:19]} Bg7 {[%clk 00:15:05]} 10. O-O
{[%clk 00:15:16]} {[%emt 00:00:09]} O-O {[%clk 00:15:08]} {[%emt 00:00:02]} 11.
Re1 {[%clk 00:15:13]} {[%emt 00:00:07]} b6 {[%clk 00:14:56]} {[%emt 00:00:18]}
12. Ba3 {[%clk 00:14:29]} {[%emt 00:00:48]} Re8 {[%clk 00:14:55]} {[%emt
00:00:06]} 13. Ng5 {[%clk 00:14:22]} {[%emt 00:00:12]} e6 {[%clk 00:14:56]}
{[%emt 00:00:05]} 14. Nxf7 {[%clk 00:14:08]} {[%emt 00:00:19]} Kxf7 {[%clk
00:14:07]} {[%emt 00:00:53]} 15. Qf3+ {[%clk 00:14:11]} {[%emt 00:00:02]} Kg8
{[%clk 00:14:10]} {[%emt 00:00:02]} 16. Qxc6 {[%clk 00:14:13]} {[%emt
00:00:03]} Bd7 {[%clk 00:14:10]} {[%emt 00:00:05]} 17. Qf3 {[%clk 00:12:56]}
{[%emt 00:01:22]} Rc8 {[%clk 00:14:11]} {[%emt 00:00:04]} 18. Bb3 {[%clk
00:12:48]} {[%emt 00:00:12]} Qg5 {[%clk 00:14:02]} {[%emt 00:00:14]} 19. Rac1
{[%clk 00:12:22]} {[%emt 00:00:32]} Kh8 {[%clk 00:13:35]} {[%emt 00:00:32]} 20.
Qg3 {[%clk 00:08:02]} {[%emt 00:04:24]} Qf5 {[%clk 00:13:33]} {[%emt 00:00:08]}
21. Bd6 {[%clk 00:07:50]} {[%emt 00:00:17]} Kg8 {[%clk 00:10:14]} {[%emt
00:03:24]} 22. Be5 {[%clk 00:05:33]} {[%emt 00:02:22]} Bh6 {[%clk 00:10:06]}
{[%emt 00:00:12]} 23. Rcd1 {[%clk 00:05:14]} {[%emt 00:00:25]} a5 {[%clk
00:10:06]} {[%emt 00:00:06]} 24. a4 {[%clk 00:04:23]} {[%emt 00:00:56]} Bc6
{[%clk 00:09:28]} {[%emt 00:00:42]} 25. c4 {[%clk 00:04:06]} {[%emt 00:00:22]}
Bg7 {[%clk 00:07:04]} {[%emt 00:02:30]} 26. h4 {[%clk 00:00:51]} {[%emt
00:03:19]} Be4 {[%clk 00:06:09]} {[%emt 00:01:00]} 27. Bxg7 {[%clk 00:00:42]}
{[%emt 00:00:15]} Kxg7 {[%clk 00:06:13]} {[%emt 00:00:01]} 28. Qd6 {[%clk
00:00:15]} {[%emt 00:00:31]} Red8 {[%clk 00:04:54]} {[%emt 00:01:25]} 29. Qe7+
{[%clk 00:00:19]} Kh8 {[%clk 00:04:56]} {[%emt 00:00:01]} 30. d5 {[%clk
00:00:16]} {[%emt 00:00:09]} Bxg2 {[%clk 00:02:37]} {[%emt 00:02:24]} 31. dxe6
{[%clk 00:00:10]} {[%emt 00:00:10]} Rf8 {[%clk 00:02:31]} {[%emt 00:00:12]} 32.
Re2 {[%clk 00:00:07]} {[%emt 00:00:09]} Qh3 {[%clk 00:02:31]} {[%emt 00:00:05]}
33. f4 {[%clk 00:00:08]} {[%emt 00:00:04]} Qxb3 {[%clk 00:02:05]} {[%emt
00:00:30]} 34. Rde1 {[%clk 00:00:07]} {[%emt 00:00:06]} Qg3 {[%clk 00:01:49]}
{[%emt 00:00:20]} 35. Qg5 {[%clk 00:00:11]} {[%emt 00:00:02]} Qxg5 {[%clk
00:01:50]} {[%emt 00:00:04]} 36. fxg5 {[%clk 00:00:10]} {[%emt 00:00:06]} Bh3
{[%clk 00:01:48]} {[%emt 00:00:07]} 37. e7 {[%clk 00:00:10]} {[%emt 00:00:05]}
Rfe8 {[%clk 00:01:52]} 38. Rb1 {[%clk 00:00:12]} {[%emt 00:00:03]} Rc6 {[%clk
00:01:51]} {[%emt 00:00:06]} 39. Rd1 {[%clk 00:00:12]} {[%emt 00:00:05]} Re6
{[%clk 00:01:31]} {[%emt 00:00:25]} 40. Rxe6 {[%clk 00:00:08]} {[%emt
00:00:09]} Bxe6 {[%clk 00:01:35]} {[%emt 00:00:02]} 41. Rd8 {[%clk 00:00:11]}
{[%emt 00:00:01]} Bf7 {[%clk 00:01:39]} {[%emt 00:00:02]} 42. Kf2 {[%clk
00:00:14]} {[%emt 00:00:01]} Kg7 {[%clk 00:01:43]} {[%emt 00:00:01]} 43. Rd6
{[%clk 00:00:15]} {[%emt 00:00:04]} Rxe7 {[%clk 00:01:45]} {[%emt 00:00:03]} 44.
Rxb6 {[%clk 00:00:19]} Bxc4 {[%clk 00:01:48]} {[%emt 00:00:02]} 0-1

[Event "Rapid Tournament (RAP)"]
[Site "Biel, Switzerland"]
[Date "2026.07.12"]
[Round "5.18"]
[White "Berezovskii, Arina"]
[Black "Haimovich, Tal"]
[Result "0-1"]
[TimeControl "15 + 5"]
[WhiteTitle "-"]
[BlackTitle "-"]
[WhiteFideId "34449850"]
[BlackFideId "2801698"]
[WhiteElo "1895"]
[BlackElo "2245"]

1. e4 {[%clk 00:15:09]} e5 {[%clk 00:15:06]} {[%emt 00:00:05]} 2. Nf3 {[%clk
00:15:13]} {[%emt 00:00:01]} Nc6 {[%clk 00:15:09]} {[%emt 00:00:02]} 3. Bb5
{[%clk 00:15:16]} {[%emt 00:00:01]} a6 {[%clk 00:15:12]} {[%emt 00:00:03]} 4.
Bxc6 {[%clk 00:15:19]} {[%emt 00:00:01]} dxc6 {[%clk 00:15:15]} {[%emt
00:00:02]} 5. O-O {[%clk 00:15:15]} {[%emt 00:00:09]} Qf6 {[%clk 00:15:17]}
{[%emt 00:00:03]} 6. d4 {[%clk 00:15:18]} {[%emt 00:00:02]} exd4 {[%clk
00:15:21]} {[%emt 00:00:02]} 7. Bg5 {[%clk 00:15:16]} {[%emt 00:00:07]} Qg6
{[%clk 00:15:23]} {[%emt 00:00:02]} 8. Qxd4 {[%clk 00:14:23]} {[%emt 00:00:59]}
Qd6 {[%clk 00:13:37]} {[%emt 00:01:50]} 9. Nc3 {[%clk 00:13:45]} {[%emt
00:00:43]} Qxd4 {[%clk 00:13:23]} {[%emt 00:00:20]} 10. Nxd4 {[%clk 00:13:48]}
{[%emt 00:00:02]} Bd7 {[%clk 00:13:24]} {[%emt 00:00:03]} 11. Rad1 {[%clk
00:13:17]} {[%emt 00:00:37]} f6 {[%clk 00:13:14]} {[%emt 00:00:15]} 12. Bf4
{[%clk 00:13:14]} {[%emt 00:00:07]} O-O-O {[%clk 00:13:15]} {[%emt 00:00:04]}
13. e5 {[%clk 00:12:38]} {[%emt 00:00:41]} fxe5 {[%clk 00:12:58]} {[%emt
00:00:22]} 14. Bxe5 {[%clk 00:12:37]} {[%emt 00:00:07]} Ne7 {[%clk 00:13:00]}
{[%emt 00:00:03]} 15. Rfe1 {[%clk 00:12:16]} {[%emt 00:00:25]} Ng6 {[%clk
00:13:02]} {[%emt 00:00:03]} 16. Bg3 {[%clk 00:12:16]} {[%emt 00:00:06]} Bb4
{[%clk 00:12:48]} {[%emt 00:00:18]} 17. Rd3 {[%clk 00:10:45]} {[%emt 00:01:36]}
c5 {[%clk 00:11:09]} {[%emt 00:01:45]} 18. Nde2 {[%clk 00:07:24]} {[%emt
00:03:25]} Bf5 {[%clk 00:10:51]} {[%emt 00:00:22]} 19. Rf3 {[%clk 00:06:47]}
{[%emt 00:00:43]} Rhf8 {[%clk 00:09:54]} {[%emt 00:01:02]} 20. Rd1 {[%clk
00:05:44]} {[%emt 00:01:08]} Rxd1+ {[%clk 00:09:31]} {[%emt 00:00:28]} 21. Nxd1
{[%clk 00:05:48]} {[%emt 00:00:02]} Bxc2 {[%clk 00:09:33]} {[%emt 00:00:03]} 22.
Rxf8+ {[%clk 00:05:32]} {[%emt 00:00:20]} Nxf8 {[%clk 00:09:36]} {[%emt
00:00:02]} 23. Ne3 {[%clk 00:05:20]} {[%emt 00:00:17]} Bb1 {[%clk 00:09:12]}
{[%emt 00:00:29]} 24. a3 {[%clk 00:05:08]} {[%emt 00:00:17]} Bd2 {[%clk
00:09:06]} {[%emt 00:00:11]} 25. Be5 {[%clk 00:04:21]} {[%emt 00:00:53]} Ne6
{[%clk 00:08:51]} {[%emt 00:00:19]} 26. Nc3 {[%clk 00:03:59]} {[%emt 00:00:27]}
Kd7 {[%clk 00:08:13]} {[%emt 00:00:42]} 27. Nc4 {[%clk 00:02:36]} {[%emt
00:01:30]} Bxc3 {[%clk 00:08:05]} {[%emt 00:00:13]} 28. Bxc3 {[%clk 00:02:24]}
{[%emt 00:00:16]} b5 {[%clk 00:07:44]} {[%emt 00:00:26]} 29. Ne3 {[%clk
00:01:51]} {[%emt 00:00:38]} Kc6 {[%clk 00:07:40]} {[%emt 00:00:10]} 30. g3
{[%clk 00:01:25]} {[%emt 00:00:30]} Be4 {[%clk 00:07:37]} {[%emt 00:00:08]} 31.
f4 {[%clk 00:01:18]} {[%emt 00:00:12]} g6 {[%clk 00:07:33]} {[%emt 00:00:08]}
32. Ng4 {[%clk 00:01:19]} {[%emt 00:00:04]} h5 {[%clk 00:07:11]} {[%emt
00:00:27]} 33. Ne5+ {[%clk 00:01:03]} {[%emt 00:00:22]} Kd5 {[%clk 00:07:12]}
{[%emt 00:00:04]} 34. Kf2 {[%clk 00:00:47]} {[%emt 00:00:21]} Nd4 {[%clk
00:06:53]} {[%emt 00:00:24]} 35. Ke3 {[%clk 00:00:27]} {[%emt 00:00:25]} Nf5+
{[%clk 00:06:40]} {[%emt 00:00:18]} 36. Ke2 {[%clk 00:00:19]} {[%emt 00:00:13]}
Nd6 {[%clk 00:06:40]} {[%emt 00:00:05]} 37. Nd7 {[%clk 00:00:14]} {[%emt
00:00:11]} Bf5 {[%clk 00:06:34]} {[%emt 00:00:10]} 38. Ba5 {[%clk 00:00:07]}
{[%emt 00:00:12]} Bxd7 {[%clk 00:06:37]} {[%emt 00:00:03]} 39. Bxc7 {[%clk
00:00:09]} {[%emt 00:00:03]} Nc4 {[%clk 00:06:39]} {[%emt 00:00:02]} 40. b3
{[%clk 00:00:09]} {[%emt 00:00:05]} Nxa3 {[%clk 00:06:42]} {[%emt 00:00:03]} 41.
Kd3 {[%clk 00:00:13]} {[%emt 00:00:01]} Bf5+ {[%clk 00:06:45]} {[%emt
00:00:02]} 42. Kc3 {[%clk 00:00:16]} {[%emt 00:00:02]} b4+ {[%clk 00:06:45]}
{[%emt 00:00:05]} 43. Kd2 {[%clk 00:00:18]} {[%emt 00:00:02]} c4 {[%clk
00:06:47]} {[%emt 00:00:03]} 44. Ba5 {[%clk 00:00:13]} {[%emt 00:00:10]} cxb3
{[%clk 00:06:46]} {[%emt 00:00:07]} 45. Kc1 {[%clk 00:00:13]} {[%emt 00:00:04]}
Kc4 {[%clk 00:06:45]} {[%emt 00:00:06]} 46. Kb2 {[%clk 00:00:15]} {[%emt
00:00:03]} Nb5 {[%clk 00:06:46]} {[%emt 00:00:05]} 47. Bd8 {[%clk 00:00:08]}
{[%emt 00:00:12]} Nc3 {[%clk 00:06:48]} {[%emt 00:00:02]} 48. Bf6 {[%clk
00:00:09]} {[%emt 00:00:04]} a5 {[%clk 00:06:48]} {[%emt 00:00:05]} 49. Be5
{[%clk 00:00:11]} {[%emt 00:00:03]} a4 {[%clk 00:06:52]} {[%emt 00:00:02]} 50.
Bd6 {[%clk 00:00:12]} {[%emt 00:00:03]} a3+ {[%clk 00:06:56]} {[%emt 00:00:02]}
51. Kc1 {[%clk 00:00:14]} {[%emt 00:00:02]} Kd3 {[%clk 00:06:53]} {[%emt
00:00:08]} 0-1

[Event "Rapid Tournament (RAP)"]
[Site "Biel, Switzerland"]
[Date "2026.07.12"]
[Round "5.19"]
[White "Grzeskowiak, Antoni"]
[Black "Gautier, Anand"]
[Result "1/2-1/2"]
[TimeControl "15 + 5"]
[WhiteTitle "-"]
[BlackTitle "-"]
[WhiteFideId "41855531"]
[BlackFideId "26010186"]
[WhiteElo "1844"]
[BlackElo "2223"]

1. d4 {[%clk 00:15:09]} {[%emt 00:00:01]} Nf6 {[%clk 00:15:09]} {[%emt
00:00:03]} 2. Nf3 {[%clk 00:15:12]} g6 {[%clk 00:15:13]} 3. Bf4 {[%clk
00:15:16]} {[%emt 00:00:01]} Bg7 {[%clk 00:15:16]} {[%emt 00:00:02]} 4. e3
{[%clk 00:15:16]} {[%emt 00:00:05]} O-O {[%clk 00:15:19]} {[%emt 00:00:02]} 5.
Nc3 {[%clk 00:15:20]} {[%emt 00:00:01]} d5 {[%clk 00:15:19]} {[%emt 00:00:05]}
6. Be2 {[%clk 00:15:14]} {[%emt 00:00:11]} c5 {[%clk 00:15:11]} {[%emt
00:00:13]} 7. O-O {[%clk 00:14:44]} {[%emt 00:00:34]} cxd4 {[%clk 00:15:01]}
{[%emt 00:00:16]} 8. exd4 {[%clk 00:14:41]} {[%emt 00:00:08]} Nc6 {[%clk
00:15:04]} {[%emt 00:00:02]} 9. a3 {[%clk 00:14:23]} {[%emt 00:00:24]} Ne4
{[%clk 00:14:45]} {[%emt 00:00:23]} 10. Rb1 {[%clk 00:14:03]} {[%emt 00:00:25]}
Bf5 {[%clk 00:13:54]} {[%emt 00:00:55]} 11. Ne5 {[%clk 00:13:33]} {[%emt
00:00:35]} Rc8 {[%clk 00:13:18]} {[%emt 00:00:41]} 12. g4 {[%clk 00:12:27]}
{[%emt 00:01:11]} Nxe5 {[%clk 00:07:36]} {[%emt 00:05:47]} 13. gxf5 {[%clk
00:11:00]} {[%emt 00:01:32]} Nc4 {[%clk 00:04:24]} {[%emt 00:03:18]} 14. Nxe4
{[%clk 00:09:21]} {[%emt 00:01:45]} dxe4 {[%clk 00:04:25]} {[%emt 00:00:03]} 15.
fxg6 {[%clk 00:08:36]} {[%emt 00:00:50]} hxg6 {[%clk 00:04:28]} {[%emt
00:00:01]} 16. c3 {[%clk 00:08:30]} {[%emt 00:00:12]} Qa5 {[%clk 00:03:57]}
{[%emt 00:00:36]} 17. Bg4 {[%clk 00:07:02]} {[%emt 00:01:33]} Rcd8 {[%clk
00:03:25]} {[%emt 00:00:37]} 18. Qb3 {[%clk 00:06:57]} {[%emt 00:00:10]} b5
{[%clk 00:03:17]} {[%emt 00:00:13]} 19. Rfe1 {[%clk 00:06:42]} {[%emt
00:00:20]} Qb6 {[%clk 00:02:42]} {[%emt 00:00:39]} 20. Be2 {[%clk 00:06:19]}
{[%emt 00:00:28]} Qf6 {[%clk 00:02:23]} {[%emt 00:00:25]} 21. Qxb5 {[%clk
00:05:11]} {[%emt 00:01:13]} Nxa3 {[%clk 00:02:08]} {[%emt 00:00:20]} 22. bxa3
{[%clk 00:05:03]} {[%emt 00:00:13]} Qxf4 {[%clk 00:02:12]} 23. Bf1 {[%clk
00:04:20]} {[%emt 00:00:48]} Rb8 {[%clk 00:01:29]} {[%emt 00:00:47]} 24. Qe2
{[%clk 00:04:14]} {[%emt 00:00:11]} Rxb1 {[%clk 00:01:23]} {[%emt 00:00:12]} 25.
Rxb1 {[%clk 00:04:17]} {[%emt 00:00:02]} Rc8 {[%clk 00:01:27]} {[%emt
00:00:01]} 26. Bg2 {[%clk 00:02:51]} {[%emt 00:01:31]} Rxc3 {[%clk 00:01:21]}
{[%emt 00:00:11]} 27. Qxe4 {[%clk 00:02:46]} {[%emt 00:00:10]} Qxe4 {[%clk
00:01:18]} {[%emt 00:00:08]} 28. Bxe4 {[%clk 00:02:49]} {[%emt 00:00:02]} Bxd4
{[%clk 00:01:21]} {[%emt 00:00:02]} 29. a4 {[%clk 00:02:32]} {[%emt 00:00:22]}
Ra3 {[%clk 00:01:04]} {[%emt 00:00:21]} 30. Bc6 {[%clk 00:02:30]} {[%emt
00:00:07]} Ra2 {[%clk 00:00:55]} {[%emt 00:00:15]} 31. Rf1 {[%clk 00:02:33]}
{[%emt 00:00:02]} Kg7 {[%clk 00:00:54]} {[%emt 00:00:06]} 32. Kg2 {[%clk
00:02:35]} {[%emt 00:00:03]} e5 {[%clk 00:00:57]} 33. Kg3 {[%clk 00:02:25]}
{[%emt 00:00:15]} f5 {[%clk 00:00:46]} {[%emt 00:00:17]} 34. f3 {[%clk
00:02:13]} {[%emt 00:00:17]} Kf6 {[%clk 00:00:48]} {[%emt 00:00:03]} 35. h4
{[%clk 00:02:03]} {[%emt 00:00:14]} Rc2 {[%clk 00:00:41]} {[%emt 00:00:13]} 36.
Be8 {[%clk 00:02:00]} {[%emt 00:00:07]} Rc3 {[%clk 00:00:35]} {[%emt 00:00:12]}
37. Kg2 {[%clk 00:01:46]} {[%emt 00:00:19]} Rc8 {[%clk 00:00:30]} {[%emt
00:00:10]} 38. Bd7 {[%clk 00:01:46]} {[%emt 00:00:05]} Rc7 {[%clk 00:00:34]}
{[%emt 00:00:02]} 39. Be8 {[%clk 00:01:48]} {[%emt 00:00:02]} Rh7 {[%clk
00:00:27]} {[%emt 00:00:12]} 40. Kg3 {[%clk 00:01:47]} {[%emt 00:00:06]} Rh8
{[%clk 00:00:30]} {[%emt 00:00:02]} 41. Bc6 {[%clk 00:01:42]} {[%emt 00:00:10]}
Rc8 {[%clk 00:00:32]} {[%emt 00:00:04]} 42. Rc1 {[%clk 00:01:35]} {[%emt
00:00:12]} Be3 {[%clk 00:00:29]} {[%emt 00:00:07]} 43. Rc4 {[%clk 00:01:31]}
{[%emt 00:00:10]} Bf4+ {[%clk 00:00:32]} {[%emt 00:00:02]} 44. Kg2 {[%clk
00:01:25]} {[%emt 00:00:11]} Rh8 {[%clk 00:00:32]} {[%emt 00:00:05]} 45. Bd5
{[%clk 00:01:13]} {[%emt 00:00:16]} Rxh4 {[%clk 00:00:33]} {[%emt 00:00:05]} 46.
Rc6+ {[%clk 00:01:17]} Kg5 {[%clk 00:00:24]} {[%emt 00:00:13]} 47. Bf7 {[%clk
00:01:20]} {[%emt 00:00:03]} Rh2+ {[%clk 00:00:27]} {[%emt 00:00:02]} 48. Kg1
{[%clk 00:01:23]} {[%emt 00:00:01]} Rh6 {[%clk 00:00:31]} {[%emt 00:00:01]} 49.
Kg2 {[%clk 00:01:19]} {[%emt 00:00:10]} Be3 {[%clk 00:00:23]} {[%emt 00:00:12]}
50. Re6 {[%clk 00:01:22]} {[%emt 00:00:03]} Bd4 {[%clk 00:00:19]} {[%emt
00:00:08]} 51. a5 {[%clk 00:01:21]} {[%emt 00:00:07]} f4 {[%clk 00:00:10]}
{[%emt 00:00:12]} 52. a6 {[%clk 00:01:23]} {[%emt 00:00:05]} Kf5 {[%clk
00:00:14]} 53. Rc6 {[%clk 00:01:09]} {[%emt 00:00:18]} Kg5 {[%clk 00:00:12]}
{[%emt 00:00:08]} 54. Re6 {[%clk 00:01:03]} {[%emt 00:00:11]} Kh5 {[%clk
00:00:10]} {[%emt 00:00:05]} 55. Rc6 {[%clk 00:01:01]} {[%emt 00:00:08]} Kg5
{[%clk 00:00:14]} {[%emt 00:00:02]} 56. Re6 {[%clk 00:01:04]} {[%emt 00:00:03]}
Rh7 {[%clk 00:00:16]} {[%emt 00:00:03]} 57. Bxg6 {[%clk 00:01:01]} {[%emt
00:00:07]} Rg7 {[%clk 00:00:19]} {[%emt 00:00:02]} 58. Be4 {[%clk 00:01:00]}
{[%emt 00:00:06]} Kh5+ {[%clk 00:00:22]} {[%emt 00:00:02]} 59. Kh2 {[%clk
00:00:39]} {[%emt 00:00:25]} Rc7 {[%emt 00:00:20]} 60. Rc6 {[%clk 00:00:35]}
Rd7 {[%clk 00:00:14]} {[%emt 00:00:03]} 61. Bf5 {[%clk 00:00:29]} {[%emt
00:00:16]} Rd8 {[%clk 00:00:14]} {[%emt 00:00:03]} 62. Bg6+ {[%clk 00:00:18]}
{[%emt 00:00:18]} Kg5 {[%clk 00:00:18]} {[%emt 00:00:01]} 63. Be4 {[%clk
00:00:21]} {[%emt 00:00:02]} Rb8 {[%clk 00:00:15]} {[%emt 00:00:07]} 64. Rc2
{[%clk 00:00:18]} {[%emt 00:00:08]} Rb3 {[%clk 00:00:10]} {[%emt 00:00:11]} 65.
Kh3 {[%clk 00:00:16]} {[%emt 00:00:07]} Rb6 {[%clk 00:00:09]} {[%emt 00:00:06]}
66. Bb7 {[%clk 00:00:13]} {[%emt 00:00:09]} Rh6+ {[%clk 00:00:10]} {[%emt
00:00:05]} 67. Kg2 {[%clk 00:00:16]} {[%emt 00:00:01]} Kh4 {[%clk 00:00:13]}
{[%emt 00:00:01]} 68. Be4 {[%clk 00:00:18]} {[%emt 00:00:04]} Rh8 {[%clk
00:00:09]} {[%emt 00:00:07]} 69. Rc7 {[%clk 00:00:17]} {[%emt 00:00:07]} Kg5
{[%clk 00:00:08]} {[%emt 00:00:05]} 70. Rg7+ {[%clk 00:00:20]} {[%emt
00:00:03]} Kf6 {[%clk 00:00:12]} 71. Rg6+ {[%clk 00:00:23]} {[%emt 00:00:02]}
Ke7 {[%clk 00:00:17]} 72. Bd5 {[%clk 00:00:14]} {[%emt 00:00:15]} Rc8 {[%clk
00:00:15]} {[%emt 00:00:06]} 73. Kh3 {[%clk 00:00:13]} {[%emt 00:00:07]} Rc1
{[%clk 00:00:08]} {[%emt 00:00:11]} 74. Kg4 {[%clk 00:00:16]} {[%emt 00:00:03]}
Re1 {[%clk 00:00:07]} {[%emt 00:00:05]} 75. Kf5 {[%clk 00:00:19]} {[%emt
00:00:03]} Re3 {[%clk 00:00:08]} {[%emt 00:00:04]} 76. Be4 {[%clk 00:00:20]}
{[%emt 00:00:04]} Re1 {[%clk 00:00:11]} {[%emt 00:00:02]} 77. Bd5 {[%clk
00:00:23]} {[%emt 00:00:01]} Kd7 {[%clk 00:00:14]} {[%emt 00:00:02]} 78. Be4
{[%clk 00:00:24]} {[%emt 00:00:05]} Kc7 {[%clk 00:00:16]} {[%emt 00:00:01]} 79.
Bd5 {[%clk 00:00:26]} {[%emt 00:00:05]} Rh1 {[%clk 00:00:14]} {[%emt 00:00:05]}
80. Be4 {[%clk 00:00:29]} {[%emt 00:00:04]} Rh5+ {[%clk 00:00:16]} {[%emt
00:00:03]} 81. Ke6 {[%clk 00:00:33]} {[%emt 00:00:01]} Rh8 {[%clk 00:00:14]}
{[%emt 00:00:08]} 82. Kd5 {[%clk 00:00:33]} {[%emt 00:00:04]} Rd8+ {[%clk
00:00:18]} 83. Kc4 {[%clk 00:00:34]} {[%emt 00:00:04]} Bb6 {[%clk 00:00:09]}
{[%emt 00:00:13]} 84. Kb5 {[%clk 00:00:26]} {[%emt 00:00:13]} Rd2 {[%clk
00:00:07]} {[%emt 00:00:08]} 85. Re6 {[%clk 00:00:25]} {[%emt 00:00:05]} Bd4
{[%clk 00:00:07]} {[%emt 00:00:06]} 86. Rc6+ {[%clk 00:00:27]} {[%emt
00:00:02]} Kd7 {[%clk 00:00:11]} {[%emt 00:00:01]} 87. Rg6 {[%clk 00:00:31]}
{[%emt 00:00:02]} Re2 {[%clk 00:00:09]} {[%emt 00:00:06]} 88. Bc6+ {[%clk
00:00:30]} {[%emt 00:00:07]} Kc7 {[%clk 00:00:11]} {[%emt 00:00:02]} 89. Be4
{[%clk 00:00:26]} {[%emt 00:00:10]} Rxe4 {[%clk 00:00:09]} {[%emt 00:00:07]} 90.
fxe4 {[%clk 00:00:29]} {[%emt 00:00:02]} f3 {[%clk 00:00:14]} 91. Rf6 {[%clk
00:00:26]} {[%emt 00:00:08]} f2 {[%clk 00:00:18]} {[%emt 00:00:01]} 92. Kc4
{[%clk 00:00:29]} {[%emt 00:00:02]} Kd7 {[%clk 00:00:21]} {[%emt 00:00:03]} 93.
Kd5 {[%clk 00:00:27]} {[%emt 00:00:06]} Ke7 {[%clk 00:00:20]} {[%emt 00:00:06]}
94. Rf5 {[%clk 00:00:29]} {[%emt 00:00:03]} Kd7 {[%clk 00:00:22]} {[%emt
00:00:03]} 95. Rf7+ {[%clk 00:00:31]} {[%emt 00:00:03]} Ke8 {[%clk 00:00:25]}
{[%emt 00:00:02]} 96. Ke6 {[%clk 00:00:35]} {[%emt 00:00:01]} Be3 {[%clk
00:00:07]} {[%emt 00:00:23]} 97. Rf3 {[%clk 00:00:36]} {[%emt 00:00:04]} Bd4
{[%clk 00:00:08]} {[%emt 00:00:04]} 98. Rf5 {[%clk 00:00:30]} {[%emt 00:00:10]}
Kd8 {[%clk 00:00:08]} {[%emt 00:00:05]} 99. Kd6 {[%clk 00:00:33]} {[%emt
00:00:02]} Ke8 {[%clk 00:00:12]} {[%emt 00:00:02]} 100. Ke6 {[%clk 00:00:37]}
{[%emt 00:00:01]} Kd8 {[%clk 00:00:07]} {[%emt 00:00:10]} 101. Kd6 {[%clk
00:00:41]} {[%emt 00:00:01]} Ke8 {[%clk 00:00:06]} {[%emt 00:00:06]} 102. Ke6
{[%clk 00:00:45]} Kd8 {[%clk 00:00:08]} {[%emt 00:00:03]} 103. Kd6 {[%clk
00:00:49]} {[%emt 00:00:01]} Ke8 {[%clk 00:00:12]} {[%emt 00:00:02]} 104. Ke6
{[%clk 00:00:53]} 1/2-1/2